[Event "*** Titled Tuesday 3|2 Blitz"]
[Site "Chess.com"]
[Date "2016.02.02"]
[Round "6"]
[White "Tesla37"]
[Black "gmjoey1"]
[Result "1-0"]
[WhiteElo "2579"]
[BlackElo "2476"]
[TimeControl "180+2"]
[EndTime "12:21:34 PST"]
[Termination "Tesla37 won by resignation"]

1. e4 {[%clk 0:03:01.9]} 1... c6 {[%clk 0:03:00.3]} 2. d4 {[%clk 0:03:01.8]}
2... d5 {[%clk 0:03:02.2]} 3. e5 {[%clk 0:03:03.2]} 3... Bf5 {[%clk 0:03:00.4]}
4. Nf3 {[%clk 0:03:03.9]} 4... e6 {[%clk 0:03:00.5]} 5. Be2 {[%clk 0:03:05]}
5... Nd7 {[%clk 0:02:59.6]} 6. Nbd2 {[%clk 0:03:05.6]} 6... Ne7 {[%clk
0:02:59.5]} 7. Nb3 {[%clk 0:03:06.2]} 7... Nc8 {[%clk 0:02:59.4]} 8. O-O {[%clk
0:03:06.3]} 8... Be7 {[%clk 0:03:00.3]} 9. Bd2 {[%clk 0:03:05.9]} 9... O-O
{[%clk 0:03:00.3]} 10. a4 {[%clk 0:03:06.7]} 10... f6 {[%clk 0:02:54.6]} 11.
exf6 {[%clk 0:03:05.6]} 11... Bxf6 {[%clk 0:02:54.7]} 12. a5 {[%clk 0:03:04.8]}
12... a6 {[%clk 0:02:51.1]} 13. Re1 {[%clk 0:03:04.7]} 13... e5 {[%clk
0:02:21.1]} 14. dxe5 {[%clk 0:02:55.7]} 14... Nxe5 {[%clk 0:02:23]} 15. Nfd4
{[%clk 0:02:53.7]} 15... Bh4 {[%clk 0:01:42.9]} 16. g3 {[%clk 0:02:49.1]} 16...
Bh3 {[%clk 0:01:31.2]} 17. Bf1 {[%clk 0:02:37.4]} 17... Bg4 {[%clk 0:01:16.1]}
18. Be2 {[%clk 0:02:19.4]} 18... Bh3 {[%clk 0:01:15.2]} 19. f4 {[%clk
0:02:16.7]} 19... Qf6 {[%clk 0:00:47.3]} 20. Bc3 {[%clk 0:02:13.9]} 20... Qh6
{[%clk 0:00:38]} 21. Bf1 {[%clk 0:01:46.5]} 21... Bg4 {[%clk 0:00:34.9]} 22. Qd2
{[%clk 0:01:45.5]} 22... Nc4 {[%clk 0:00:28.9]} 23. Bxc4 {[%clk 0:01:32.4]}
23... dxc4 {[%clk 0:00:29.2]} 24. Nc5 {[%clk 0:01:33.9]} 24... Be7 {[%clk
0:00:21]} 25. Nce6 {[%clk 0:01:28]} 25... Nd6 {[%clk 0:00:21]} 26. Nxf8 {[%clk
0:01:26.3]} 26... Bxf8 {[%clk 0:00:22.9]} 27. Re5 {[%clk 0:01:20.6]} 27... Rd8
{[%clk 0:00:21.8]} 28. Qf2 {[%clk 0:01:18.3]} 28... Nf7 {[%clk 0:00:21]} 29. Re3
{[%clk 0:01:15.5]} 29... Bc5 {[%clk 0:00:21.1]} 30. Rae1 {[%clk 0:01:16.1]}
30... Nd6 {[%clk 0:00:20.9]} 31. Re5 {[%clk 0:01:14.8]} 31... Ba7 {[%clk
0:00:19.2]} 32. f5 {[%clk 0:01:03.9]} 32... Rf8 {[%clk 0:00:15.3]} 33. Kh1
{[%clk 0:00:47.4]} 33... Nxf5 {[%clk 0:00:12]} 34. Re8 {[%clk 0:00:25.9]} 34...
Bxd4 {[%clk 0:00:08]} 35. Rxf8+ {[%clk 0:00:23.6]} 35... Kxf8 {[%clk 0:00:07.6]}
36. Bxd4 {[%clk 0:00:25.1]} 36... Qh5 {[%clk 0:00:08.4]} 37. Bc5+ {[%clk
0:00:23.3]} 37... Kf7 {[%clk 0:00:09.3]} 38. Kg1 {[%clk 0:00:22.4]} 38... Bf3
{[%clk 0:00:09.1]} 39. Rf1 {[%clk 0:00:22.1]} 39... Bg4 {[%clk 0:00:08.6]} 40.
Qf4 {[%clk 0:00:22.2]} 40... h6 {[%clk 0:00:08.8]} 41. Re1 {[%clk 0:00:19.8]}
41... Kg6 {[%clk 0:00:10.1]} 42. Re6+ {[%clk 0:00:19.2]} 42... Kh7 {[%clk
0:00:11.6]} 43. Re5 {[%clk 0:00:20]} 43... Bh3 {[%clk 0:00:12.8]} 44. Re1 {[%clk
0:00:14.1]} 44... Nh4 {[%clk 0:00:12.3]} 45. Qe4+ {[%clk 0:00:08.7]} 45... Ng6
{[%clk 0:00:12.6]} 46. Bd4 {[%clk 0:00:08.9]} 46... Bf5 {[%clk 0:00:12.9]} 47.
Qe2 {[%clk 0:00:08.9]} 47... Bg4 {[%clk 0:00:13.8]} 48. Qxc4 {[%clk 0:00:09.5]}
48... Qf5 {[%clk 0:00:14.1]} 49. Qd3 {[%clk 0:00:09.8]} 49... Qd5 {[%clk
0:00:14.3]} 50. Bc3 {[%clk 0:00:10]} 50... Qc5+ {[%clk 0:00:14.3]} 51. Qd4
{[%clk 0:00:10.3]} 51... Qf8 {[%clk 0:00:15.8]} 52. Rf1 {[%clk 0:00:11]} 52...
Qg8 {[%clk 0:00:16]} 53. Qxg4 {[%clk 0:00:11.6]} 53... Qd5 {[%clk 0:00:15.7]}
54. Qd4 {[%clk 0:00:11.7]} 54... Qg8 {[%clk 0:00:17.2]} 55. Qe4 {[%clk
0:00:12.5]} 55... Qd8 {[%clk 0:00:13.1]} 56. h4 {[%clk 0:00:12]} 56... Qd6
{[%clk 0:00:08.8]} 57. Kh2 {[%clk 0:00:11.6]} 57... Qc5 {[%clk 0:00:06.8]} 58.
Qd4 {[%clk 0:00:11.2]} 58... Qe7 {[%clk 0:00:07.6]} 59. Re1 {[%clk 0:00:11.3]}
59... Qf7 {[%clk 0:00:08.3]} 60. Rf1 {[%clk 0:00:08.3]} 60... Qe7 {[%clk
0:00:08.2]} 61. h5 {[%clk 0:00:09.3]} 61... Qe2+ {[%clk 0:00:08.4]} 62. Kg1
{[%clk 0:00:08.2]} 1-0

[Event "*** Titled Tuesday 3|2 Blitz"]
[Site "Chess.com"]
[Date "2016.02.02"]
[Round "6"]
[White "AlexanderL"]
[Black "Boryboy"]
[Result "0-1"]
[WhiteElo "2579"]
[BlackElo "2518"]
[TimeControl "180+2"]
[EndTime "12:21:37 PST"]
[Termination "Boryboy won on time"]

1. d4 {[%clk 0:03:01.9]} 1... e6 {[%clk 0:03:00.6]} 2. e4 {[%clk 0:02:46.5]}
2... d5 {[%clk 0:03:00.6]} 3. exd5 {[%clk 0:02:47.4]} 3... exd5 {[%clk
0:03:00.2]} 4. Be3 {[%clk 0:02:48.8]} 4... Nf6 {[%clk 0:02:58.8]} 5. Nc3 {[%clk
0:02:47.7]} 5... c6 {[%clk 0:02:58.8]} 6. Bd3 {[%clk 0:02:46.8]} 6... Be6 {[%clk
0:02:59.3]} 7. h3 {[%clk 0:02:45.8]} 7... Nbd7 {[%clk 0:02:59.3]} 8. Qd2 {[%clk
0:02:45.3]} 8... h6 {[%clk 0:02:58.9]} 9. Nge2 {[%clk 0:02:44.4]} 9... Bd6
{[%clk 0:02:53.9]} 10. Bf4 {[%clk 0:02:43.9]} 10... Qc7 {[%clk 0:02:53.9]} 11.
O-O-O {[%clk 0:02:41.6]} 11... O-O-O {[%clk 0:02:53.8]} 12. Kb1 {[%clk
0:02:40.2]} 12... Rde8 {[%clk 0:02:54.3]} 13. Rhe1 {[%clk 0:02:38.5]} 13... Nb6
{[%clk 0:02:52.9]} 14. Bxd6 {[%clk 0:02:35.2]} 14... Qxd6 {[%clk 0:02:54]} 15.
Qf4 {[%clk 0:02:37.1]} 15... Qxf4 {[%clk 0:02:54.3]} 16. Nxf4 {[%clk 0:02:36.7]}
16... Bd7 {[%clk 0:02:55.2]} 17. Kc1 {[%clk 0:02:31.9]} 17... Kd8 {[%clk
0:02:56.2]} 18. Kd2 {[%clk 0:02:29.5]} 18... Nc8 {[%clk 0:02:56.5]} 19. Re5
{[%clk 0:02:26.9]} 19... Re7 {[%clk 0:02:30.2]} 20. Rde1 {[%clk 0:02:25.2]}
20... Rhe8 {[%clk 0:02:31.2]} 21. Rxe7 {[%clk 0:01:38.5]} 21... Rxe7 {[%clk
0:02:31.7]} 22. Re3 {[%clk 0:01:34.6]} 22... Nd6 {[%clk 0:02:31.1]} 23. f3
{[%clk 0:01:32]} 23... Rxe3 {[%clk 0:02:28.9]} 24. Kxe3 {[%clk 0:01:32.6]} 24...
Ke7 {[%clk 0:02:30.4]} 25. g4 {[%clk 0:01:30.6]} 25... g5 {[%clk 0:02:20.2]} 26.
Nfe2 {[%clk 0:01:29.4]} 26... Nfe8 {[%clk 0:02:21.1]} 27. Ng3 {[%clk 0:01:28.5]}
27... Ng7 {[%clk 0:02:21]} 28. Nce2 {[%clk 0:01:11.6]} 28... f5 {[%clk
0:02:20.7]} 29. gxf5 {[%clk 0:01:11.8]} 29... Ngxf5+ {[%clk 0:02:20.6]} 30.
Nxf5+ {[%clk 0:01:08.9]} 30... Nxf5+ {[%clk 0:02:19.8]} 31. Kf2 {[%clk
0:01:09.9]} 31... Ng7 {[%clk 0:02:17.2]} 32. Kg2 {[%clk 0:01:05.7]} 32... Nh5
{[%clk 0:02:17.5]} 33. Bg6 {[%clk 0:01:04.7]} 33... Ng7 {[%clk 0:02:15.3]} 34.
f4 {[%clk 0:00:54.4]} 34... Kf6 {[%clk 0:02:15.5]} 35. Bd3 {[%clk 0:00:53.4]}
35... g4 {[%clk 0:02:12]} 36. hxg4 {[%clk 0:00:46.8]} 36... Bxg4 {[%clk
0:02:13]} 37. Ng3 {[%clk 0:00:47.3]} 37... Ne6 {[%clk 0:02:13.3]} 38. Kf2 {[%clk
0:00:25.3]} 38... Nxf4 {[%clk 0:02:11.1]} 39. Bf1 {[%clk 0:00:25.2]} 39... h5
{[%clk 0:02:09.2]} 40. Ke3 {[%clk 0:00:25.2]} 40... Ne6 {[%clk 0:02:10.3]} 41.
Nh1 {[%clk 0:00:25.6]} 41... Kg5 {[%clk 0:02:09.2]} 42. Nf2 {[%clk 0:00:26.1]}
42... Bf5 {[%clk 0:02:08.2]} 43. c3 {[%clk 0:00:25.8]} 43... Nf4 {[%clk
0:02:06.2]} 44. Kf3 {[%clk 0:00:25.7]} 44... h4 {[%clk 0:02:06.1]} 45. a3 {[%clk
0:00:22.4]} 45... a5 {[%clk 0:01:57.1]} 46. b4 {[%clk 0:00:21.7]} 46... axb4
{[%clk 0:01:58]} 47. axb4 {[%clk 0:00:22.5]} 47... b5 {[%clk 0:01:58.8]} 48. Ke3
{[%clk 0:00:16.1]} 48... Bg4 {[%clk 0:01:59.5]} 49. Nh1 {[%clk 0:00:09.8]} 49...
Bh3 {[%clk 0:01:54.5]} 50. Bxh3 {[%clk 0:00:04]} 50... Nxh3 {[%clk 0:01:55.6]}
51. Kf3 {[%clk 0:00:05.3]} 51... Kf5 {[%clk 0:01:55.6]} 52. Kg2 {[%clk
0:00:05.8]} 52... Ng5 {[%clk 0:01:54.3]} 53. Nf2 {[%clk 0:00:06.4]} 53... Ne4
{[%clk 0:01:55.5]} 54. Nd3 {[%clk 0:00:05.9]} 54... Nxc3 {[%clk 0:01:37.3]} 55.
Ne5 {[%clk 0:00:06.9]} 55... Ke4 {[%clk 0:01:37.8]} 56. Nxc6 {[%clk 0:00:07.8]}
56... Ne2 {[%clk 0:01:39.5]} 57. Kh3 {[%clk 0:00:08.1]} 57... Nxd4 {[%clk
0:01:40.8]} 58. Na7 {[%clk 0:00:09.3]} 58... Kd3 {[%clk 0:01:39.2]} 59. Kxh4
{[%clk 0:00:07.2]} 59... Kc4 {[%clk 0:01:40.5]} 60. Kg4 {[%clk 0:00:07.8]} 60...
Kxb4 {[%clk 0:01:42.1]} 61. Kf4 {[%clk 0:00:09.1]} 61... Kc3 {[%clk 0:01:43.2]}
62. Nc8 {[%clk 0:00:07.4]} 62... b4 {[%clk 0:01:44.4]} 63. Nb6 {[%clk
0:00:08.4]} 63... b3 {[%clk 0:01:42.4]} 64. Nxd5+ {[%clk 0:00:09.2]} 64... Kd2
{[%clk 0:01:42]} 65. Nb6 {[%clk 0:00:09.9]} 65... Kd3 {[%clk 0:01:28.4]} 66. Na4
{[%clk 0:00:09.9]} 66... Kc2 {[%clk 0:01:06.5]} 67. Ke3 {[%clk 0:00:10.9]} 67...
Nb5 {[%clk 0:01:06.4]} 68. Nb6 {[%clk 0:00:08.9]} 68... b2 {[%clk 0:01:02.1]}
0-1

[Event "*** Titled Tuesday 3|2 Blitz"]
[Site "Chess.com"]
[Date "2016.02.02"]
[Round "7"]
[White "oskariot"]
[Black "APL2001"]
[Result "0-1"]
[WhiteElo "2322"]
[BlackElo "2169"]
[TimeControl "180+2"]
[EndTime "12:26:06 PST"]
[Termination "APL2001 won by resignation"]

1. a3 {[%clk 0:02:55.4]} 1... e5 {[%clk 0:02:53.5]} 2. c4 {[%clk 0:02:54.4]}
2... Nf6 {[%clk 0:02:53]} 3. d3 {[%clk 0:02:55.4]} 3... d5 {[%clk 0:02:53.4]} 4.
cxd5 {[%clk 0:02:56.3]} 4... Nxd5 {[%clk 0:02:54.4]} 5. Nf3 {[%clk 0:02:57.7]}
5... Nc6 {[%clk 0:02:55.2]} 6. e3 {[%clk 0:02:57.6]} 6... Be7 {[%clk 0:02:55.2]}
7. Be2 {[%clk 0:02:58.3]} 7... O-O {[%clk 0:02:56.1]} 8. Qc2 {[%clk 0:02:54.3]}
8... a5 {[%clk 0:02:54.4]} 9. Nc3 {[%clk 0:02:52.3]} 9... Be6 {[%clk 0:02:53.4]}
10. O-O {[%clk 0:02:53.1]} 10... f5 {[%clk 0:02:51.4]} 11. Re1 {[%clk 0:02:54]}
11... Kh8 {[%clk 0:02:49.8]} 12. Nxd5 {[%clk 0:02:49.8]} 12... Bxd5 {[%clk
0:02:49.4]} 13. e4 {[%clk 0:02:50.7]} 13... Be6 {[%clk 0:02:33.3]} 14. exf5
{[%clk 0:02:52.6]} 14... Bxf5 {[%clk 0:02:34.5]} 15. Be3 {[%clk 0:02:53.5]}
15... Qd7 {[%clk 0:02:32.6]} 16. Nd2 {[%clk 0:02:53.2]} 16... Rad8 {[%clk
0:02:31.8]} 17. Ne4 {[%clk 0:02:52.7]} 17... Bxe4 {[%clk 0:02:23.4]} 18. dxe4
{[%clk 0:02:52.8]} 18... Nd4 {[%clk 0:02:24.6]} 19. Bxd4 {[%clk 0:02:53.8]}
19... exd4 {[%clk 0:02:25.7]} 20. Bd3 {[%clk 0:02:51.6]} 20... c5 {[%clk
0:02:10.2]} 21. e5 {[%clk 0:02:44.5]} 21... b5 {[%clk 0:02:05]} 22. b3 {[%clk
0:02:42.3]} 22... a4 {[%clk 0:01:54.7]} 23. bxa4 {[%clk 0:02:40.5]} 23... c4
{[%clk 0:01:50.8]} 24. Be4 {[%clk 0:02:38.1]} 24... d3 {[%clk 0:01:51]} 25. Qc3
{[%clk 0:02:35]} 25... Bc5 {[%clk 0:01:51.4]} 26. Rf1 {[%clk 0:02:35.9]} 26...
Bd4 {[%clk 0:01:52]} 27. Qb4 {[%clk 0:02:36.8]} 27... Bxa1 {[%clk 0:01:50.4]}
28. Rxa1 {[%clk 0:02:37.6]} 28... Qd4 {[%clk 0:01:51.4]} 0-1

[Event "*** Titled Tuesday 3|2 Blitz"]
[Site "Chess.com"]
[Date "2016.02.02"]
[Round "7"]
[White "Saitama_Hero"]
[Black "BillieKimbah"]
[Result "0-1"]
[WhiteElo "2095"]
[BlackElo "2386"]
[TimeControl "180+2"]
[EndTime "12:27:44 PST"]
[Termination "BillieKimbah won by resignation"]

1. d4 {[%clk 0:03:01.9]} 1... Nf6 {[%clk 0:02:57.7]} 2. c4 {[%clk 0:03:03.1]}
2... g6 {[%clk 0:02:58.8]} 3. Nc3 {[%clk 0:03:04.4]} 3... d5 {[%clk 0:02:59.4]}
4. cxd5 {[%clk 0:03:06.3]} 4... Nxd5 {[%clk 0:03:00.3]} 5. Bd2 {[%clk
0:03:07.9]} 5... Bg7 {[%clk 0:02:59.6]} 6. e4 {[%clk 0:03:06.9]} 6... Nb6 {[%clk
0:03:00.4]} 7. Be3 {[%clk 0:03:00.9]} 7... Nc6 {[%clk 0:02:59.1]} 8. Nf3 {[%clk
0:02:51.2]} 8... Bg4 {[%clk 0:02:59]} 9. d5 {[%clk 0:02:50.6]} 9... Ne5 {[%clk
0:02:58]} 10. Be2 {[%clk 0:02:52]} 10... Bxf3 {[%clk 0:02:58]} 11. gxf3 {[%clk
0:02:53]} 11... O-O {[%clk 0:02:58]} 12. Qb3 {[%clk 0:02:41.9]} 12... a5 {[%clk
0:02:55.9]} 13. f4 {[%clk 0:02:24.5]} 13... a4 {[%clk 0:02:55.7]} 14. Qb5 {[%clk
0:02:18.3]} 14... Ned7 {[%clk 0:02:51.4]} 15. e5 {[%clk 0:02:05.3]} 15... a3
{[%clk 0:02:50.3]} 16. b3 {[%clk 0:02:03.1]} 16... c6 {[%clk 0:02:45.4]} 17. Qd3
{[%clk 0:01:47.1]} 17... cxd5 {[%clk 0:02:42.2]} 18. Nxd5 {[%clk 0:01:49]} 18...
Nxe5 {[%clk 0:02:39.7]} 19. fxe5 {[%clk 0:01:33.2]} 19... Nxd5 {[%clk
0:02:39.4]} 20. Rd1 {[%clk 0:01:31.7]} 20... e6 {[%clk 0:02:37.1]} 21. O-O
{[%clk 0:01:26.1]} 21... Bxe5 {[%clk 0:02:35.6]} 22. f4 {[%clk 0:01:19.7]} 22...
Bg7 {[%clk 0:02:34]} 23. Bc5 {[%clk 0:01:19.2]} 23... Re8 {[%clk 0:02:32.9]} 24.
Bf3 {[%clk 0:01:15.9]} 24... Qc7 {[%clk 0:02:31.9]} 25. Qb5 {[%clk 0:01:03.5]}
25... Nc3 {[%clk 0:02:30]} 26. Qb6 {[%clk 0:00:51.7]} 26... Qxb6 {[%clk
0:02:24.2]} 27. Bxb6 {[%clk 0:00:53.6]} 27... Nxa2 {[%clk 0:02:21.6]} 28. Bd4
{[%clk 0:00:32.5]} 28... Nc3 {[%clk 0:02:20]} 29. Bxc3 {[%clk 0:00:28.7]} 29...
Bxc3 {[%clk 0:02:19]} 0-1

[Event "*** Titled Tuesday 3|2 Blitz"]
[Site "Chess.com"]
[Date "2016.02.02"]
[Round "7"]
[White "Jahonas"]
[Black "Grootneus"]
[Result "1-0"]
[WhiteElo "2185"]
[BlackElo "2021"]
[TimeControl "180+2"]
[EndTime "12:28:22 PST"]
[Termination "Jahonas won by resignation"]

1. d4 {[%clk 0:03:01.9]} 1... Nf6 {[%clk 0:02:59.1]} 2. Nf3 {[%clk 0:03:03.1]}
2... c5 {[%clk 0:02:57.9]} 3. c3 {[%clk 0:03:01.9]} 3... d5 {[%clk 0:02:57]} 4.
Bf4 {[%clk 0:03:02.7]} 4... Nc6 {[%clk 0:02:57.4]} 5. e3 {[%clk 0:03:03.6]} 5...
e6 {[%clk 0:02:57.9]} 6. Nbd2 {[%clk 0:03:04.4]} 6... Bd6 {[%clk 0:02:57.6]} 7.
Bxd6 {[%clk 0:03:03.9]} 7... Qxd6 {[%clk 0:02:59.5]} 8. Bd3 {[%clk 0:03:05.1]}
8... O-O {[%clk 0:03:00.1]} 9. O-O {[%clk 0:03:06.1]} 9... e5 {[%clk 0:03:01.4]}
10. dxe5 {[%clk 0:03:06.6]} 10... Nxe5 {[%clk 0:03:02.1]} 11. Nxe5 {[%clk
0:03:08.1]} 11... Qxe5 {[%clk 0:03:04]} 12. Nf3 {[%clk 0:03:09.3]} 12... Qd6
{[%clk 0:03:05.1]} 13. h3 {[%clk 0:03:09.3]} 13... Bd7 {[%clk 0:02:55.4]} 14.
Qc2 {[%clk 0:03:09.5]} 14... Bc6 {[%clk 0:02:54.9]} 15. Rfd1 {[%clk 0:03:09.8]}
15... Qc7 {[%clk 0:02:48.5]} 16. Rac1 {[%clk 0:03:07.8]} 16... Ne4 {[%clk
0:02:47.8]} 17. Bxe4 {[%clk 0:03:07.7]} 17... dxe4 {[%clk 0:02:48.7]} 18. Nd2
{[%clk 0:03:04.6]} 18... f5 {[%clk 0:02:46.2]} 19. b4 {[%clk 0:03:05]} 19...
cxb4 {[%clk 0:02:45.1]} 20. cxb4 {[%clk 0:03:05.6]} 20... a6 {[%clk 0:02:40.4]}
21. Nb3 {[%clk 0:03:03.6]} 21... Rad8 {[%clk 0:02:39.4]} 22. Nd4 {[%clk
0:03:04]} 22... Qb6 {[%clk 0:02:34.5]} 23. Nxc6 {[%clk 0:03:03.8]} 23... bxc6
{[%clk 0:02:35.1]} 24. Rxd8 {[%clk 0:02:59.1]} 24... Rxd8 {[%clk 0:02:34.4]} 25.
a3 {[%clk 0:02:50.4]} 25... a5 {[%clk 0:02:30.2]} 26. Qxc6 {[%clk 0:02:39.3]}
26... Rd1+ {[%clk 0:02:28.7]} 27. Kh2 {[%clk 0:02:39.3]} 27... Qb8+ {[%clk
0:02:27.4]} 28. Qc7 {[%clk 0:02:40]} 28... Qxc7+ {[%clk 0:02:28.1]} 29. Rxc7
{[%clk 0:02:40.3]} 29... axb4 {[%clk 0:02:30]} 30. axb4 {[%clk 0:02:41.2]} 30...
Rb1 {[%clk 0:02:31.6]} 31. Rb7 {[%clk 0:02:21.4]} 31... h6 {[%clk 0:02:19.1]}
32. h4 {[%clk 0:02:19]} 32... Rb2 {[%clk 0:01:41.6]} 33. Kg3 {[%clk 0:02:17.7]}
33... Kf8 {[%clk 0:01:35]} 34. b5 {[%clk 0:02:17.1]} 34... Kg8 {[%clk
0:01:35.1]} 35. b6 {[%clk 0:02:17.6]} 35... Kf8 {[%clk 0:01:35]} 36. f3 {[%clk
0:02:15.7]} 36... Kg8 {[%clk 0:01:32.7]} 37. fxe4 {[%clk 0:02:12.8]} 37... fxe4
{[%clk 0:01:34.6]} 38. Kf4 {[%clk 0:02:08.6]} 38... Rxg2 {[%clk 0:01:35]} 39.
Rc7 {[%clk 0:02:04.8]} 39... Rb2 {[%clk 0:01:34.9]} 40. b7 {[%clk 0:02:04.8]}
40... Kh7 {[%clk 0:01:35.4]} 41. h5 {[%clk 0:02:04.5]} 41... Rb4 {[%clk
0:01:34.9]} 42. Kf5 {[%clk 0:02:05.1]} 42... Kg8 {[%clk 0:01:12.4]} 43. Rc8+
{[%clk 0:02:03.7]} 43... Kh7 {[%clk 0:01:13.7]} 44. b8=Q {[%clk 0:01:57.8]}
44... Rxb8 {[%clk 0:01:15.6]} 45. Rxb8 {[%clk 0:01:58.9]} 45... g5 {[%clk
0:01:16.2]} 46. hxg6+ {[%clk 0:01:59.9]} 46... Kg7 {[%clk 0:01:17.6]} 47. Rb7+
{[%clk 0:02:01.3]} 47... Kg8 {[%clk 0:01:18.1]} 48. Kf6 {[%clk 0:02:02.1]} 1-0

[Event "*** Titled Tuesday 3|2 Blitz"]
[Site "Chess.com"]
[Date "2016.02.02"]
[Round "7"]
[White "attack2mateU"]
[Black "Danirod"]
[Result "0-1"]
[WhiteElo "2449"]
[BlackElo "2392"]
[TimeControl "180+2"]
[EndTime "12:29:18 PST"]
[Termination "Danirod won by resignation"]

1. e4 {[%clk 0:03:01.9]} 1... c5 {[%clk 0:03:00.5]} 2. Nf3 {[%clk 0:03:03.1]}
2... g6 {[%clk 0:03:01.6]} 3. c3 {[%clk 0:03:01]} 3... Bg7 {[%clk 0:03:02]} 4.
d4 {[%clk 0:03:01.8]} 4... cxd4 {[%clk 0:03:03.5]} 5. cxd4 {[%clk 0:03:02.9]}
5... d5 {[%clk 0:03:04.6]} 6. e5 {[%clk 0:03:01.3]} 6... a6 {[%clk 0:03:05.3]}
7. Be2 {[%clk 0:03:01.6]} 7... Nc6 {[%clk 0:03:06.4]} 8. O-O {[%clk 0:03:01.6]}
8... Bg4 {[%clk 0:03:07.4]} 9. Nbd2 {[%clk 0:03:01.8]} 9... Nh6 {[%clk
0:03:07.2]} 10. h3 {[%clk 0:02:53.2]} 10... Bxf3 {[%clk 0:03:07.3]} 11. Nxf3
{[%clk 0:02:55.1]} 11... Nf5 {[%clk 0:03:06.9]} 12. g4 {[%clk 0:02:53.2]} 12...
Nh6 {[%clk 0:03:07.7]} 13. Be3 {[%clk 0:02:54]} 13... f6 {[%clk 0:03:06.1]} 14.
Qd2 {[%clk 0:02:49.5]} 14... Nf7 {[%clk 0:03:06.4]} 15. e6 {[%clk 0:02:50.2]}
15... Nd6 {[%clk 0:03:07.6]} 16. Bd3 {[%clk 0:02:45.2]} 16... O-O {[%clk
0:03:03.6]} 17. Rae1 {[%clk 0:02:45]} 17... Ne4 {[%clk 0:03:02.1]} 18. Qc2
{[%clk 0:02:43.3]} 18... f5 {[%clk 0:02:59.2]} 19. Ne5 {[%clk 0:02:24.3]} 19...
Bxe5 {[%clk 0:02:43.7]} 20. dxe5 {[%clk 0:02:23.3]} 20... Nb4 {[%clk 0:02:45]}
21. Qd1 {[%clk 0:02:20.9]} 21... Nxd3 {[%clk 0:02:45.8]} 22. Qxd3 {[%clk
0:02:22.8]} 22... f4 {[%clk 0:02:12.2]} 23. Bd4 {[%clk 0:01:44.2]} 23... Ng5
{[%clk 0:02:01.3]} 24. f3 {[%clk 0:01:25.4]} 24... Nxh3+ {[%clk 0:01:58.6]} 25.
Kg2 {[%clk 0:01:26.6]} 25... Ng5 {[%clk 0:01:59.9]} 26. Rd1 {[%clk 0:01:27.6]}
26... Nxe6 {[%clk 0:02:01]} 27. Bf2 {[%clk 0:01:28.2]} 27... Rc8 {[%clk
0:01:57.9]} 28. Qxd5 {[%clk 0:01:21.9]} 28... Qxd5 {[%clk 0:01:58.9]} 29. Rxd5
{[%clk 0:01:23.8]} 29... Rfd8 {[%clk 0:01:57]} 30. Rfd1 {[%clk 0:01:20.6]} 30...
Kf7 {[%clk 0:01:57]} 31. Rd7 {[%clk 0:01:20.3]} 31... Rxd7 {[%clk 0:01:56.7]}
32. Rxd7 {[%clk 0:01:21.4]} 32... b5 {[%clk 0:01:56.5]} 33. Ra7 {[%clk
0:01:13.6]} 33... Rc6 {[%clk 0:01:56.7]} 34. b4 {[%clk 0:01:08.6]} 34... g5
{[%clk 0:01:57.8]} 35. Kf1 {[%clk 0:01:09]} 35... Rc4 {[%clk 0:01:55]} 36. Rxa6
{[%clk 0:01:09.3]} 36... Rxb4 {[%clk 0:01:55.5]} 37. Rb6 {[%clk 0:00:59.5]}
37... Rb1+ {[%clk 0:01:56.1]} 38. Kg2 {[%clk 0:00:59.4]} 38... b4 {[%clk
0:01:49.6]} 39. a3 {[%clk 0:00:55.6]} 39... b3 {[%clk 0:01:51.1]} 40. a4 {[%clk
0:00:57.1]} 40... Ra1 {[%clk 0:01:50]} 41. Rxb3 {[%clk 0:00:57.8]} 41... Rxa4
{[%clk 0:01:51.1]} 42. Rb5 {[%clk 0:00:58.5]} 42... Ra2 {[%clk 0:01:51.6]} 43.
Kf1 {[%clk 0:00:59.4]} 43... Ra3 {[%clk 0:01:52.6]} 44. Kg2 {[%clk 0:01:00.1]}
44... Nc7 {[%clk 0:01:51.5]} 45. Rc5 {[%clk 0:01:00.5]} 45... Ne6 {[%clk
0:01:52.5]} 46. Rb5 {[%clk 0:01:01.7]} 46... Rd3 {[%clk 0:01:53.6]} 47. Kf1
{[%clk 0:01:01.6]} 47... Rxf3 {[%clk 0:01:54.1]} 48. Kg2 {[%clk 0:01:02.7]}
48... Rd3 {[%clk 0:01:54]} 49. Rb8 {[%clk 0:01:03.7]} 49... Rd5 {[%clk
0:01:49.1]} 50. Rh8 {[%clk 0:01:04.4]} 50... Kg7 {[%clk 0:01:49.3]} 51. Re8
{[%clk 0:01:05.4]} 51... Kf7 {[%clk 0:01:45.4]} 52. Rh8 {[%clk 0:01:06.4]} 52...
Nf8 {[%clk 0:01:46.5]} 0-1

[Event "*** Titled Tuesday 3|2 Blitz"]
[Site "Chess.com"]
[Date "2016.02.02"]
[Round "7"]
[White "Viaje"]
[Black "AndrewMcStone"]
[Result "0-1"]
[WhiteElo "2098"]
[BlackElo "2008"]
[TimeControl "180+2"]
[EndTime "12:29:45 PST"]
[Termination "AndrewMcStone won by resignation"]

1. d4 {[%clk 0:03:01.9]} 1... e6 {[%clk 0:02:57.7]} 2. e4 {[%clk 0:03:02]} 2...
d5 {[%clk 0:02:57.2]} 3. exd5 {[%clk 0:03:03.9]} 3... exd5 {[%clk 0:02:57.4]} 4.
Nf3 {[%clk 0:03:05.6]} 4... Bg4 {[%clk 0:02:57]} 5. h3 {[%clk 0:03:02.5]} 5...
Bh5 {[%clk 0:02:55.8]} 6. Qe2+ {[%clk 0:02:59.2]} 6... Be7 {[%clk 0:02:55]} 7.
Qb5+ {[%clk 0:02:56.2]} 7... Nd7 {[%clk 0:02:16.1]} 8. Qxb7 {[%clk 0:02:51.9]}
8... Ngf6 {[%clk 0:01:53]} 9. Be2 {[%clk 0:02:50.8]} 9... O-O {[%clk 0:01:47.2]}
10. O-O {[%clk 0:02:50.9]} 10... Bd6 {[%clk 0:01:36.5]} 11. c3 {[%clk
0:02:50.7]} 11... Qe7 {[%clk 0:01:26.6]} 12. Be3 {[%clk 0:02:50.5]} 12... Rab8
{[%clk 0:01:16.6]} 13. Qxa7 {[%clk 0:02:46.7]} 13... Rxb2 {[%clk 0:01:12.2]} 14.
Nbd2 {[%clk 0:02:45.3]} 14... Rxd2 {[%clk 0:01:04.6]} 15. Bxd2 {[%clk
0:02:39.7]} 15... Qxe2 {[%clk 0:01:04.6]} 16. Rfe1 {[%clk 0:02:35.3]} 16... Qd3
{[%clk 0:01:04.4]} 17. Re3 {[%clk 0:02:27.9]} 17... Qc2 {[%clk 0:00:55.7]} 18.
Be1 {[%clk 0:02:13.7]} 18... Qf5 {[%clk 0:00:31]} 19. Ne5 {[%clk 0:01:49.2]}
19... Nxe5 {[%clk 0:00:26]} 20. dxe5 {[%clk 0:01:51.1]} 20... Bxe5 {[%clk
0:00:26.5]} 21. g4 {[%clk 0:01:52.1]} 21... Bxg4 {[%clk 0:00:24.8]} 22. hxg4
{[%clk 0:01:52.4]} 22... Nxg4 {[%clk 0:00:25.5]} 23. Rh3 {[%clk 0:01:49]} 23...
Nxf2 {[%clk 0:00:19.5]} 24. Re3 {[%clk 0:01:29]} 24... Nh3+ {[%clk 0:00:19.3]}
25. Kg2 {[%clk 0:01:20.5]} 25... Qg4+ {[%clk 0:00:19.9]} 26. Bg3 {[%clk
0:01:08.4]} 26... Nf4+ {[%clk 0:00:16.3]} 27. Kf2 {[%clk 0:01:05.8]} 27... Bd6
{[%clk 0:00:12.5]} 28. Rg1 {[%clk 0:00:55.8]} 28... Nh3+ {[%clk 0:00:12.5]} 29.
Kf1 {[%clk 0:00:44.7]} 29... Nxg1 {[%clk 0:00:14.4]} 30. Bxd6 {[%clk 0:00:45.8]}
30... cxd6 {[%clk 0:00:15.1]} 31. Qe7 {[%clk 0:00:43.5]} 31... Nh3 {[%clk
0:00:13.4]} 32. Qxd6 {[%clk 0:00:44]} 32... Qf4+ {[%clk 0:00:14.1]} 33. Ke2
{[%clk 0:00:44.7]} 33... Qxd6 {[%clk 0:00:14.5]} 0-1